bitfinex/quotes_ETHUSD_20230405
["timestamp","ask_amount","ask_price","bid_price","bid_amount"]
[1680671820744,0.928,1909.6,1909.4,0.341009]
[1680671821169,0.928,1909.6,1909.5,0.72253436]
[1680671821750,0.928,1909.6,1909.5,0.98437436]
[1680671822071,0.928,1909.6,1909.5,0.72253436]
[1680671823148,0.928,1909.6,1909.3,0.26787]
[1680671823355,0.94956921,1909.8,1909.5,2.6]
[1680671823583,0.923,1909.6,1909.5,2.6]
[1680671828165,0.923,1909.6,1909.5,3.32253436]
[1680671829785,0.923,1909.6,1909.5,3.58437436]
[1680671830387,0.928,1909.7,1909.5,3.58437436]
[1680671830584,0.928,1909.7,1909.5,10.23397436]
[1680671830892,0.928,1909.7,1909.5,10.23597436]
[1680671831096,0.93209081,1909.9,1909.5,10.23597436]
[1680671831281,0.93209081,1909.9,1909.5,11.2601718]
[1680671831899,0.93209081,1909.9,1909.5,11.7838618]
[1680671832193,0.93209081,1909.9,1909.5,13.89445435]
[1680671834093,0.93209081,1909.9,1909.5,10.9983318]
[1680671834298,0.93209081,1909.9,1909.5,10.23597436]
[1680671836585,0.927,1909.7,1909.5,10.23597436]
[1680671840289,0.927,1909.7,1909.5,9.97413436]
[1680671840833,0.927,1909.7,1909.5,9.98013436]
[1680671841126,0.927,1909.7,1909.5,9.97413436]
[1680671841683,0.927,1909.7,1909.5,10.24197436]
[1680671841978,0.927,1909.7,1909.5,9.97413436]
[1680671842183,0.928,1909.6,1909.5,10.24197436]
[1680671843324,0.92518437,1909.6,1909.5,11.2601718]
[1680671844127,0.92518437,1909.6,1909.5,10.23597436]
[1680671844480,0.92518437,1909.6,1909.5,3.32453436]
[1680671844793,0.92518437,1909.6,1909.5,3.32253436]
[1680671845339,0.92518437,1909.6,1909.5,2.6]
[1680671847130,0.92518437,1909.6,1909.5,3.08168957]
[1680671847834,1.01770281,1909.6,1909.5,3.08168957]
[1680671848983,1.94570281,1909.6,1909.5,3.08168957]
[1680671849539,2.18135281,1909.6,1909.5,3.08168957]
[1680671850720,2.18735281,1909.6,1909.5,3.08168957]
[1680671851033,2.65865281,1909.6,1909.5,3.08168957]
[1680671851193,2.65865281,1909.6,1909.5,2.6]
[1680671851539,2.18735281,1909.6,1909.5,2.6]
[1680671852810,1.95170281,1909.6,1909.5,2.6]
[1680671856265,1.95170281,1909.6,1909.5,3.31071989]
[1680671859897,1.02370281,1909.6,1909.5,3.31071989]
[1680671860091,0.92518437,1909.6,1909.5,3.31071989]
[1680671860294,0.93118437,1909.6,1909.5,3.31071989]
[1680671861391,0.92918437,1909.6,1909.5,3.31071989]
[1680671861591,0.92518437,1909.6,1909.5,3.31071989]
[1680671861793,0.92518437,1909.6,1909.5,3.57255989]
[1680671862090,0.92518437,1909.6,1909.5,3.93001588]
[1680671863716,0.92518437,1909.6,1909.5,4.45370588]
[1680671864149,0.928,1909.6,1909.5,4.45370588]
[1680671864841,0.00409081,1909.9,1909.5,4.45370588]
[1680671864842,0.92709081,1909.9,1909.5,4.45370588]
[1680671865972,0.00409081,1909.9,1909.5,4.45370588]
[1680671866181,0.00409081,1909.9,1909.6,3.07965314]
[1680671866482,0.00409081,1909.9,1909.7,0.78546]
[1680671866625,0.00409081,1909.9,1909.7,3.41974255]
[1680671866827,0.00409081,1909.9,1909.7,14.37314255]
[1680671867062,0.00409081,1909.9,1909.8,2.63428255]
[1680671867261,0.00409081,1909.9,1909.8,5.40810681]
[1680671867462,0.00409081,1909.9,1909.8,5.41010681]
[1680671869663,0.00409081,1909.9,1909.8,5.41610681]
[1680671870067,0.00409081,1909.9,1909.8,10.92510681]
[1680671872296,0.00409081,1909.9,1909.8,10.91910681]
[1680671879626,0.00409081,1909.9,1909.8,10.92110681]
[1680671879794,0.00409081,1909.9,1909.8,10.92510681]
[1680671880290,0.00409081,1909.9,1909.8,10.91910681]
[1680671880496,0.00409081,1909.9,1909.8,5.41010681]
[1680671881526,0.00409081,1909.9,1909.8,10.91910681]
[1680671888649,0.00097185,1909.9,1909.8,10.92310681]
[1680671888819,0.00097185,1909.9,1909.8,10.91910681]
[1680671895785,0.00097185,1909.9,1909.8,2.77582426]
[1680671895960,0.00097185,1909.9,1909.8,2.77382426]
[1680671896556,0.00097185,1909.9,1909.8,5.40810681]
[1680671896771,0.00097185,1909.9,1909.8,5.41010681]
[1680671898048,0.00097185,1909.9,1909.8,10.91910681]
[1680671901277,0.00097185,1909.9,1909.8,12.01110681]
[1680671902265,0.00097185,1909.9,1909.8,12.24110681]
[1680671906091,0.00097185,1909.9,1909.8,12.2385161]
[1680671906477,0.00097185,1909.9,1909.8,13.33391631]
[1680671908395,0.00097185,1909.9,1909.8,13.61046214]
[1680671910508,0.00097185,1909.9,1909.8,12.2385161]
[1680671911288,0.00097185,1909.9,1909.8,11.1465161]
[1680671911994,0.00097185,1909.9,1909.8,12.287795]
[1680671912191,0.00097185,1909.9,1909.8,12.517795]
[1680671912500,0.00097185,1909.9,1909.8,11.1465161]
[1680671915726,0.00097185,1909.9,1909.8,11.1465161]
[1680671918669,0.00097185,1909.9,1909.8,12.78518016]
[1680671920642,0.00097185,1909.9,1909.8,11.1465161]
[1680671920862,0.00097185,1909.9,1909.8,10.9165161]
[1680671923468,0.00097185,1909.9,1909.8,12.55518016]
[1680671923663,0.00097185,1909.9,1909.8,12.78518016]
[1680671924170,0.00097185,1909.9,1909.8,11.1465161]
[1680671924542,0.00097185,1909.9,1909.8,12.78518016]
[1680671924933,0.00097185,1909.9,1909.8,11.1465161]
[1680671925270,0.00097185,1909.9,1909.8,12.78518016]
[1680671925461,0.00097185,1909.9,1909.8,11.1465161]
[1680671926664,1.096,1910.5,1909.9,0.00298638]
[1680671926962,1.096,1910.5,1910.0,11.07354881]
[1680671927164,1.102,1910.5,1910.0,28.54734881]
[1680671928472,1.096,1910.4,1910.0,28.54734881]
[1680671928794,1.096,1910.4,1910.1,2.43119414]
[1680671928941,1.096,1910.4,1910.2,0.78525]
[1680671929366,1.046,1910.4,1910.2,0.78525]
[1680671932112,0.02156921,1910.6,1910.2,0.78525]
[1680671932409,1.096,1910.3,1910.2,0.78525]
[1680671932580,1.096,1910.3,1910.2,1.4803113]
[1680671934116,1.096,1910.3,1910.2,4.11459385]
[1680671942043,1.096,1910.4,1910.2,4.11459385]
[1680671945349,1.096,1910.4,1910.2,2.89603255]
[1680671946141,1.096,1910.4,1910.2,3.41953255]
[1680671951029,1.0920061,1910.4,1910.2,3.41953255]
[1680671951357,1.096,1910.5,1910.2,3.41953255]
[1680671952159,0.927,1910.5,1910.2,3.41953255]
[1680671952348,0.927,1910.5,1910.3,0.34195326]
[1680671952539,0.927,1910.5,1910.3,0.60367326]
[1680671953171,0.927,1910.5,1910.3,0.26172]
[1680671955268,0.927,1910.5,1910.3,0.78519]
[1680671957747,0.927,1910.5,1910.3,3.41947255]
[1680671958751,0.927,1910.5,1910.3,2.89600255]
[1680671958955,0.927,1910.5,1910.3,3.41947255]
[1680671959437,0.927,1910.5,1910.4,0.60366726]
[1680671962074,0.921,1910.7,1910.4,0.60366726]
[1680671962075,0.927,1910.6,1910.4,0.60366726]
[1680671962672,0.927,1910.6,1910.4,0.34194726]
[1680671962872,0.927,1910.6,1910.3,3.41947255]
[1680671963434,0.925,1910.4,1910.3,3.41947255]
[1680671965348,0.925,1910.4,1910.3,0.26172]
[1680671965550,0.925,1910.4,1910.3,0.78519]
[1680671972218,0.927,1910.6,1910.3,3.41947255]
[1680671972416,0.927,1910.6,1910.3,9.99567255]
[1680671972718,0.927,1910.6,1910.3,9.99767255]
[1680671972871,0.927,1910.6,1910.3,11.21252443]
[1680671973111,0.924,1910.7,1910.3,11.21252443]
[1680671973342,0.92010875,1910.7,1910.3,9.99767255]
[1680671973520,0.92010875,1910.7,1910.3,10.00367255]
[1680671976048,0.927,1910.5,1910.3,9.48020255]
[1680671978451,0.927,1910.5,1910.3,6.84592]
[1680671979754,1.0197,1910.5,1910.3,0.008]
[1680671980067,1.854,1910.4,1910.2,0.26174]
[1680671980374,0.927,1910.3,1910.2,0.006]
[1680671980584,1.1124,1910.3,1910.2,0.26174]
[1680671980763,1.1124,1910.3,1910.2,0.26175]
[1680671980964,1.1124,1910.3,1910.1,0.26775]
[1680671981131,0.927,1910.4,1910.2,0.26175]
[1680671981332,0.925,1910.3,1910.2,0.26175]
[1680671983762,0.925,1910.3,1910.2,2.86175]
[1680671983964,0.925,1910.3,1910.2,2.86775]
[1680671984133,0.925,1910.3,1910.2,3.39125]
[1680671989434,31.02703046,1910.9,1910.3,0.925]
[1680671989637,0.006,1911.0,1910.6,5.509]
[1680671989837,0.11000001,1911.2,1910.8,0.78501]
[1680671989838,0.002,1910.9,1910.8,0.78501]
[1680671990040,0.11000001,1911.2,1910.8,16.22807255]
[1680671990339,0.11000001,1911.2,1910.8,16.25163719]
[1680671991413,0.11000001,1911.2,1911.0,1.83149]
[1680671991740,0.11000001,1911.2,1911.1,0.78487]
[1680671993823,0.11000001,1911.2,1911.1,3.41915255]
[1680671994035,0.11000001,1911.2,1911.1,8.92815255]
[1680671994238,0.11000001,1911.2,1911.1,8.93015255]
[1680671994421,0.11000001,1911.2,1911.1,0.78687]
[1680671994613,0.11000001,1911.2,1911.1,0.78487]
[1680671995016,2.17064353,1911.9,1911.1,7.00729655]
[1680671995209,2.17064353,1911.9,1911.7,2.63428255]
[1680671995210,0.90797261,1911.8,1911.7,2.63428255]
[1680671995408,0.90797261,1911.8,1911.7,4.46509255]
[1680671995612,0.14661307,1911.9,1911.7,5.26620181]
[1680671995834,0.14661307,1911.9,1911.7,10.33009255]
[1680671996033,0.14661307,1911.9,1911.7,10.35164702]
[1680671996206,0.14661307,1911.9,1911.8,2.63428255]
[1680671996408,1.03700001,1912.4,1911.9,5.509]
[1680671996409,0.11000001,1912.4,1911.9,5.509]
[1680671996634,0.11000001,1912.4,1912.0,4.48630364]
[1680671997253,0.11000001,1912.4,1912.2,0.373]
[1680671997421,1.10200001,1912.4,1912.2,0.63446]
[1680671999125,1.10200001,1912.4,1912.2,0.63447]
[1680671999650,1.22320001,1912.4,1912.2,0.373]
[1680672000151,1.22320001,1912.4,1912.2,0.63447]
[1680672000366,1.22320001,1912.4,1912.2,0.373]
[1680672002161,1.094,1912.3,1912.2,0.373]
[1680672002321,1.32572,1912.3,1912.2,0.373]
[1680672005439,1.32572,1912.3,1912.2,2.973]
[1680672009026,1.32172,1912.3,1912.2,2.973]
[1680672009364,1.32172,1912.3,1912.2,2.6]
[1680672019245,1.32172,1912.3,1912.2,2.59689516]
[1680672022171,1.32172,1912.3,1912.2,2.59043313]
[1680672025569,1.55703,1912.3,1912.2,2.59043313]
[1680672026086,11.26594255,1912.3,1912.2,2.04565174]
[1680672026398,0.23534,1912.1,1911.8,0.03661436]
[1680672026696,1.095,1911.9,1911.8,0.03661436]
[1680672050321,1.09197198,1911.9,1911.8,0.03661436]
[1680672051522,1.33035,1912.0,1911.8,0.03661436]
[1680672051694,1.85325756,1912.0,1911.8,0.03661436]
[1680672052098,1.095,1911.9,1911.8,0.03661436]
[1680672062256,0.923,1911.9,1911.8,0.03661436]
[1680672063375,1.15836,1911.9,1911.8,0.03661436]
[1680672063577,1.38092006,1911.9,1911.8,0.03661436]
[1680672065637,2.28895715,1911.9,1911.8,0.03661436]
[1680672065834,5.93830273,1911.9,1911.8,0.03661436]
[1680672066183,6.76526657,1911.9,1911.8,0.03661436]
[1680672066475,12.50426771,1911.9,1911.8,0.03661436]
[1680672066676,11.95587657,1911.9,1911.8,0.03661436]
[1680672067237,14.95587657,1911.9,1911.8,0.03661436]
[1680672072242,15.88187657,1911.9,1911.8,0.03661436]
[1680672072454,17.24388011,1911.9,1911.8,0.03661436]
[1680672082893,17.24388011,1911.9,1911.8,0.03449425]
[1680672085680,11.26415011,1911.9,1911.8,0.03449425]
[1680672085894,9.90214657,1911.9,1911.8,0.03449425]
[1680672086587,9.67214657,1911.9,1911.8,0.03449425]
[1680672086789,6.76520429,1911.9,1911.8,0.03449425]
[1680672086980,4.68084429,1911.9,1911.8,0.03449425]
[1680672087186,4.67884429,1911.9,1911.8,0.03449425]
[1680672091082,1.91420429,1911.9,1911.8,0.03449425]
[1680672091463,1.67884429,1911.9,1911.8,0.03449425]
[1680672091664,1.91420429,1911.9,1911.8,0.03449425]
[1680672091873,1.67884429,1911.9,1911.8,0.03449425]
[1680672092073,2.60484429,1911.9,1911.8,0.03449425]
[1680672092273,1.14856006,1911.9,1911.8,0.03449425]
[1680672093194,2.05658978,1911.9,1911.8,0.03449425]
[1680672093374,0.22256006,1911.9,1911.8,0.03449425]
[1680672095491,1.13059056,1911.9,1911.8,0.03449425]
[1680672095797,1.13059043,1911.9,1911.8,0.03449425]
[1680672096001,1.13059042,1911.9,1911.8,0.03449425]
[1680672096402,0.22256006,1911.9,1911.8,0.03449425]
[1680672096908,1.13058878,1911.9,1911.8,0.03449425]
[1680672100707,0.22256006,1911.9,1911.8,0.03449425]
[1680672101215,0.9080269,1911.9,1911.8,0.03449425]
[1680672106282,0.54824714,1912.0,1911.8,0.03449425]
[1680672106682,1.45626412,1912.0,1911.8,0.03449425]
[1680672110190,1.69161412,1912.0,1911.8,0.03449425]
[1680672110388,0.54824714,1912.0,1911.8,0.03449425]
[1680672110595,0.99619986,1912.0,1911.8,0.03449425]
[1680672114323,0.76084986,1912.0,1911.8,0.03449425]
[1680672115529,0.54824714,1912.0,1911.8,0.03449425]
[1680672115730,1.45625469,1912.0,1911.8,0.03449425]
[1680672125048,1.69160469,1912.0,1911.8,0.03449425]
[1680672125244,0.78359714,1912.0,1911.8,0.03449425]
[1680672125962,0.54824714,1911.9,1911.8,0.03449425]
[1680672126149,1.98996759,1911.9,1911.8,0.03449425]
[1680672126926,2.46069759,1911.9,1911.8,0.03449425]
[1680672131062,2.73335732,1911.9,1911.8,0.03449425]
[1680672131271,15.07876346,1911.9,1911.8,0.03449425]
[1680672131429,15.31076346,1911.9,1911.8,0.03449425]
[1680672132156,16.23376346,1911.9,1911.8,0.03449425]
[1680672132663,16.23385977,1911.9,1911.8,0.03449425]
[1680672132839,7.86057722,1911.9,1911.8,0.03449425]
[1680672134131,6.93457722,1911.9,1911.8,0.03449425]
[1680672135633,9.56885977,1911.9,1911.8,0.03449425]
[1680672135874,9.79885977,1911.9,1911.8,0.03449425]
[1680672136272,9.79885977,1911.9,1911.8,0.03129552]
[1680672137438,16.23385977,1911.9,1911.8,0.00029552]
[1680672143471,16.23385977,1911.9,1911.3,0.006]
[1680672143702,0.926,1911.6,1911.3,0.006]
[1680672144211,1.1614,1911.6,1911.3,0.006]
[1680672144370,0.926,1911.6,1911.3,0.71374258]
[1680672144775,1.1614,1911.6,1911.3,0.71374258]
[1680672145498,1.1614,1911.6,1911.3,0.006]
[1680672145684,1.37941797,1911.6,1911.3,0.006]
[1680672146210,1.14401797,1911.6,1911.3,0.006]
[1680672146372,1.14401797,1911.6,1911.3,0.71374258]
[1680672147001,1.37941797,1911.6,1911.3,0.71374258]
[1680672147517,1.14401797,1911.6,1911.3,0.71374258]
[1680672147709,1.37941797,1911.6,1911.3,0.71374258]
[1680672148304,1.91098674,1911.6,1911.3,0.71374258]
[1680672150212,1.67558674,1911.6,1911.3,0.71374258]
[1680672150939,1.91098674,1911.6,1911.3,0.71374258]
[1680672153502,0.98498674,1911.6,1911.3,0.71374258]
[1680672153908,3.65878122,1911.5,1911.3,0.71374258]
[1680672154128,3.65878122,1911.5,1911.3,0.70774258]
[1680672154129,0.23,1911.4,1911.3,0.70774258]
[1680672154326,2.86428255,1911.4,1911.2,0.006]
[1680672154541,3.27670267,1911.4,1911.2,0.006]
[1680672154944,3.51213267,1911.4,1911.2,0.006]
[1680672155330,3.51213267,1911.4,1911.3,0.70774258]
[1680672159862,3.5082316,1911.4,1911.0,6.4253]
[1680672160196,2.63428255,1911.4,1911.0,6.4253]
[1680672161104,2.63428255,1911.4,1911.0,6.68694]
[1680672162255,2.63428255,1911.4,1911.1,0.7116416]
[1680672162500,2.63428255,1911.4,1911.1,0.7176416]
[1680672165210,2.63428255,1911.3,1911.1,0.7176416]
[1680672165507,0.002,1911.4,1911.1,0.7176416]
[1680672165671,2.86428255,1911.4,1911.1,0.7176416]
[1680672171186,2.86428255,1911.4,1911.1,0.9792616]
[1680672171582,2.63428255,1911.4,1911.1,0.9792616]
[1680672173214,2.63428255,1911.4,1911.1,0.26762]
[1680672173564,3.5414108,1911.4,1911.1,0.79087]
[1680672173849,2.63428255,1911.4,1911.1,0.79087]
[1680672174959,2.63428255,1911.4,1911.1,0.78487]
[1680672174960,2.64028255,1911.4,1911.1,0.78487]
[1680672175724,0.006,1911.4,1911.1,3.40116]
[1680672175943,2.83600321,1911.7,1911.2,0.340116]
[1680672175944,0.006,1911.6,1911.2,0.340116]
[1680672176143,0.932,1911.7,1911.3,1.83117]
[1680672177359,0.932,1911.7,1911.4,0.51146391]
[1680672177659,0.932,1911.7,1911.5,0.78471]
[1680672178323,0.932,1911.7,1911.6,0.26156]
[1680672178529,1.38019997,1911.7,1911.6,0.26156]
[1680672182199,0.45419997,1911.7,1911.6,0.26156]
[1680672182372,0.006,1911.7,1911.6,0.26156]
[1680672182566,0.928,1911.8,1911.6,0.26156]
[1680672182567,0.006,1911.8,1911.6,1.83092]
[1680672183078,0.929,1911.9,1911.6,1.83092]
[1680672185290,0.006,1911.9,1911.7,0.02155447]
[1680672185616,0.006,1912.0,1911.8,1.83072]
[1680672186729,0.006,1912.1,1912.0,0.78451]
[1680672188538,55.19212843,1912.4,1912.0,0.78451]
[1680672188539,0.006,1912.3,1912.0,0.78451]
[1680672188698,2.65028256,1912.4,1912.0,0.89651]
[1680672188892,2.65028256,1912.4,1912.0,1.091264]
[1680672189192,0.01600001,1912.4,1912.0,1.091264]
[1680672189514,0.01600001,1912.4,1912.0,12.560464]
[1680672189515,0.01000001,1912.4,1912.0,12.560464]
[1680672189694,0.01600001,1912.4,1912.0,12.562464]
[1680672189893,0.01000001,1912.4,1912.0,12.562464]
[1680672190392,0.01600001,1912.4,1912.0,12.562464]
[1680672190597,0.01000001,1912.4,1912.1,1.2562464]
[1680672190918,0.01000001,1912.4,1912.2,1.83033]
[1680672191288,0.01000001,1912.4,1912.2,1.94933]
[1680672191718,0.01000001,1912.4,1912.2,8.12653]
[1680672191905,0.01000001,1912.4,1912.2,8.12853]
[1680672192434,0.01000001,1912.4,1912.3,0.55976888]
[1680672192605,0.01000001,1912.4,1912.3,1.34415888]
[1680672197987,0.0063327,1912.4,1912.3,1.34815888]
[1680672198201,0.0063327,1912.4,1912.3,0.82122888]
[1680672203735,0.0063327,1912.4,1912.3,0.55976888]
[1680672204033,0.9323327,1912.4,1912.3,0.55976888]
[1680672204639,1.15269497,1912.4,1912.3,0.55976888]
[1680672205295,4.02227752,1912.4,1912.3,0.55976888]
[1680672205533,4.25227752,1912.4,1912.3,0.55976888]
[1680672206124,4.01697752,1912.4,1912.3,0.55976888]
[1680672214049,9.52597752,1912.4,1912.3,0.55976888]
[1680672214347,9.52797752,1912.4,1912.3,0.55976888]
[1680672218230,4.01897752,1912.4,1912.3,0.55976888]
[1680672218431,3.79661525,1912.4,1912.3,0.55976888]
[1680672220711,3.79661525,1912.4,1912.3,0.82122888]
[1680672220712,0.0063327,1912.4,1912.3,0.82122888]
[1680672227540,0.0063327,1912.4,1912.3,1.34415888]
[1680672228235,0.0063327,1912.4,1912.3,0.82122888]
[1680672229251,0.0063327,1912.4,1912.3,1.58104677]
[1680672231134,0.0063327,1912.4,1912.3,0.55976888]
[1680672239582,0.9323327,1912.4,1912.3,0.55976888]
[1680672239914,1.84013567,1912.4,1912.3,0.55976888]
[1680672240064,2.38813534,1912.4,1912.3,0.55976888]
[1680672242087,1.46213534,1912.4,1912.3,0.55976888]
[1680672250686,1.79394883,1912.4,1912.3,0.55976888]
[1680672251498,0.00295515,1912.4,1912.3,0.82122888]
[1680672252398,0.00295515,1912.4,1912.3,1.34415888]
[1680672267786,0.00295515,1912.4,1912.3,3.97844143]
[1680672268002,0.00295515,1912.4,1912.3,3.98311351]
[1680672268208,0.00295515,1912.4,1912.3,5.45428086]
[1680672268418,0.00295515,1912.4,1912.3,5.45628086]
[1680672269117,0.00295515,1912.4,1912.3,2.82199831]
[1680672269420,0.00295515,1912.4,1912.3,2.81999831]
[1680672272193,0.00295515,1912.4,1912.3,5.45428086]
[1680672272430,0.00295515,1912.4,1912.3,5.45628086]
[1680672273915,0.00295515,1912.4,1912.3,2.82199831]
[1680672274153,0.00295515,1912.4,1912.3,2.81999831]
[1680672275323,0.11000001,1912.5,1912.4,0.00093101]
[1680672275539,0.11000001,1912.5,1912.4,1.06728084]
[1680672275936,0.11000001,1912.5,1912.4,12.50348084]
[1680672276114,0.11000001,1912.5,1912.4,12.50548084]
[1680672276739,0.11000001,1912.5,1912.4,11.98258084]
[1680672278349,0.11000001,1912.5,1912.4,12.50548084]
[1680672278551,0.11000001,1912.5,1912.4,11.98258084]
[1680672278950,0.11000001,1912.5,1912.4,12.50548084]
[1680672281432,0.11000001,1912.5,1912.4,13.55128084]
[1680672282251,0.11000001,1912.5,1912.4,12.50548084]
[1680672282455,0.11000001,1912.5,1912.4,12.19035381]
[1680672285359,0.11000001,1912.5,1912.4,12.18654732]
[1680672286042,0.11000001,1912.5,1912.4,16.38952987]
[1680672286256,0.11000001,1912.5,1912.4,14.71724732]
[1680672288226,0.11000001,1912.5,1912.4,17.35152987]
[1680672288429,0.11000001,1912.5,1912.4,19.08930484]
[1680672290363,0.06148708,1912.5,1912.4,19.08930484]
[1680672291364,0.01358056,1912.5,1912.4,19.08930484]
[1680672292042,0.01358056,1912.5,1912.4,18.16330484]
[1680672292365,0.11000001,1912.6,1912.4,18.16330484]
[1680672292564,0.11000001,1912.6,1912.5,1.81633048]
[1680672292730,0.11000001,1912.6,1912.5,2.60063048]
[1680672293162,0.11000001,1912.6,1912.5,8.39196048]
[1680672293465,0.06295943,1912.6,1912.5,8.85405858]
[1680672293765,0.06295943,1912.6,1912.5,9.37692858]
[1680672294462,0.01650686,1912.6,1912.5,9.37692858]
[1680672309010,0.01650686,1912.6,1912.5,12.01121113]
[1680672309193,0.01650686,1912.6,1912.5,12.03275657]
[1680672309515,0.922,1913.0,1912.5,12.03275657]
[1680672309726,0.922,1913.0,1912.7,0.78421]
[1680672311094,0.006,1913.1,1912.7,0.78421]
[1680672311321,0.11600001,1913.2,1912.7,0.8057532]
[1680672311495,0.54799967,1913.0,1912.8,0.08057532]
[1680672311732,0.926,1913.1,1912.9,0.82314]
[1680672312424,0.926,1913.1,1913.0,0.44914261]
[1680672312721,0.926,1913.1,1913.0,0.71050261]
[1680672313301,0.926,1913.1,1913.0,1.23323261]
[1680672313497,0.926,1913.1,1913.0,1.36045587]
[1680672313892,0.11000001,1913.2,1913.0,1.36045587]
[1680672314529,0.11000001,1913.2,1913.0,1.39845587]
[1680672315174,0.11000001,1913.2,1913.0,1.41999568]
[1680672315520,0.11000001,1913.2,1913.0,4.05427823]
[1680672315744,0.11000001,1913.2,1913.1,0.40542782]
[1680672316053,0.11000001,1913.2,1913.1,1.18948782]
[1680672316215,0.11000001,1913.2,1913.1,7.88548782]
[1680672316552,0.11000001,1913.2,1913.1,10.52177037]
[1680672317320,0.11000001,1913.2,1913.1,7.36477782]
[1680672317667,0.11000001,1913.2,1913.1,0.26335]
[1680672317874,0.11000001,1913.2,1913.1,0.78406]
[1680672318374,0.11000001,1913.2,1913.1,7.46376255]
[1680672318533,0.11000001,1913.2,1913.1,7.46576255]
[1680672319162,0.11000001,1913.2,1913.1,4.46576255]
[1680672319328,0.11000001,1913.2,1913.1,6.03209279]
[1680672319526,0.11000001,1913.2,1913.1,6.03409279]
[1680672319956,0.11000001,1913.2,1913.1,2.35439024]
[1680672320170,0.11000001,1913.2,1913.1,2.35239024]
[1680672325773,0.11000001,1913.2,1913.1,10.49567279]
[1680672326078,0.11000001,1913.2,1913.1,10.49767279]
[1680672327191,0.11000001,1913.2,1913.1,4.98867279]
[1680672327392,0.11000001,1913.2,1913.1,5.37798329]
[1680672327587,0.11000001,1913.2,1913.1,5.37998329]
[1680672327993,0.11000001,1913.2,1913.1,2.74570074]
[1680672328289,0.11000001,1913.2,1913.1,2.74370074]
[1680672328485,0.11000001,1913.2,1913.1,1.1753705]
[1680672328695,0.11000001,1913.2,1913.1,0.6526605]
[1680672329627,0.11000001,1913.2,1913.1,0.3913105]
[1680672329775,0.11000001,1913.2,1913.1,0.6526605]
[1680672330371,0.10696038,1913.2,1913.1,0.6526605]
[1680672331304,0.10696038,1913.2,1913.1,0.3913105]
[1680672331620,0.10696038,1913.2,1913.1,0.6526605]
[1680672331975,0.10696038,1913.2,1913.1,0.3913105]
[1680672332307,0.10696038,1913.2,1913.1,0.46243053]
[1680672332476,0.10696038,1913.2,1913.1,0.58736157]
[1680672332811,0.10696038,1913.2,1913.1,0.84871157]
[1680672333708,0.10696038,1913.2,1913.1,1.37142157]
[1680672352832,0.10696038,1913.2,1913.1,1.30030154]
[1680672353771,0.10696038,1913.2,1913.1,0.51624154]
[1680672353772,1.19196038,1913.2,1913.1,0.51624154]
[1680672354469,1.19196038,1913.2,1913.0,0.26136]
[1680672354670,1.093,1913.1,1913.0,0.26136]
[1680672355056,1.08933374,1913.1,1913.0,0.26136]
[1680672355575,1.08933374,1913.1,1913.0,0.70396264]
[1680672355870,1.08933374,1913.1,1913.0,0.44260264]
[1680672356169,1.08933374,1913.1,1913.0,0.70396264]
[1680672356383,1.08933374,1913.1,1913.0,0.44260264]
[1680672357870,1.20896315,1913.1,1913.0,0.44260264]
[1680672358448,1.20896315,1913.1,1912.6,7.85316257]
[1680672358449,1.20896315,1913.1,1912.6,7.85516257]
[1680672358648,1.089,1912.9,1912.8,0.26139]
[1680672359166,1.093,1913.1,1912.8,0.78418]
[1680672359474,1.093,1913.1,1912.8,1.19337529]
[1680672372088,1.093,1913.0,1912.8,1.19337529]
[1680672372298,1.093,1912.9,1912.8,0.40919529]
[1680672372616,1.093,1912.9,1912.8,0.67058529]
[1680672375806,1.085,1913.1,1912.8,1.19337529]
[1680672376271,1.085,1913.1,1912.8,2.23895529]
[1680672376468,1.085,1913.1,1912.8,2.57243587]
[1680672376804,1.085,1913.1,1912.8,2.59397794]
[1680672378338,1.08120004,1913.1,1912.8,1.54839794]
[1680672382133,0.924,1913.0,1912.8,1.54839794]
[1680672382334,0.925,1913.1,1912.8,1.54839794]
[1680672382546,0.925,1913.1,1912.9,0.15483979]
[1680672382865,0.925,1913.1,1912.9,0.41619979]
[1680672383323,0.925,1913.1,1913.0,0.40695075]
[1680672383526,0.925,1913.1,1912.9,0.41619979]
[1680672383741,0.925,1913.1,1912.9,0.26136]
[1680672383943,0.925,1913.1,1912.8,0.87781265]
[1680672384088,0.925,1913.1,1912.8,0.61640265]
[1680672385099,0.925,1913.1,1912.8,1.13919265]
[1680672387427,0.925,1913.1,1913.0,0.26136]
[1680672388647,0.925,1913.1,1912.9,0.26137]
[1680672390050,0.925,1913.1,1912.8,0.61640265]
[1680672393337,0.925,1913.1,1912.8,0.28292207]
[1680672395371,0.925,1913.1,1912.8,0.80571207]
[1680672398801,0.9223405,1913.1,1912.8,0.80571207]
[1680672401663,0.9223405,1913.1,1912.8,0.80571207]
[1680672402469,0.9223405,1913.1,1912.9,0.40719592]
[1680672402678,0.9223405,1913.1,1912.9,0.66856592]
[1680672403307,0.9223405,1913.1,1912.9,0.78985572]
[1680672406945,0.9223405,1913.1,1912.9,1.31261572]
[1680672412105,1.02996038,1913.2,1912.9,1.31261572]
[1680672419724,1.02996038,1913.2,1912.9,0.78985572]
[1680672420545,1.02996038,1913.2,1913.0,0.34034557]
[1680672420751,1.02996038,1913.2,1913.0,0.07898557]
[1680672421345,1.02996038,1913.2,1913.1,0.40637844]
[1680672421520,1.02608179,1913.2,1913.0,0.34034557]
[1680672421724,1.02608179,1913.2,1913.0,0.26136]
[1680672422154,0.10308179,1913.2,1913.0,0.26136]
[1680672422446,0.10308179,1913.2,1912.9,6.5822598]
[1680672422612,0.10308179,1913.2,1912.9,6.46764208]
[1680672422806,0.10308179,1913.2,1912.9,6.46297]
[1680672423425,0.10308179,1913.2,1912.9,6.98573]
[1680672424750,0.10308179,1913.2,1912.9,6.46297]
[1680672425171,0.10308179,1913.2,1913.0,0.646297]
[1680672425373,0.10308179,1913.2,1913.0,0.907657]
[1680672427680,0.10308179,1913.2,1913.0,0.646297]
[1680672428179,0.10308179,1913.2,1913.0,0.907657]
[1680672428977,0.10308179,1913.2,1913.0,0.646297]
[1680672429471,0.10308179,1913.2,1913.0,0.907657]
[1680672430282,0.10308179,1913.2,1913.0,0.646297]
[1680672430643,0.10308179,1913.2,1913.0,0.907657]
[1680672430963,0.10308179,1913.2,1913.1,0.0907657]
[1680672431165,0.10308179,1913.2,1913.0,0.26136]
[1680672431369,0.10308179,1913.2,1913.1,0.26135]
[1680672431675,0.10308179,1913.2,1913.0,0.26135]